[Event "*** Titled Tuesday Blitz"]
[Site "Chess.com"]
[Date "2018.08.07"]
[Round "6"]
[White "FearNoEvil12"]
[Black "senecacrane"]
[Result "1-0"]
[WhiteElo "1956"]
[BlackElo "2118"]
[TimeControl "180+2"]
[EndTime "14:17:16 PDT"]
[Termination "FearNoEvil12 won by resignation"]

1. e4 {[%clk 0:03:01.9]} 1... c6 {[%clk 0:03:01]} 2. d4 {[%clk 0:03:01.9]} 2...
d5 {[%clk 0:03:02.9]} 3. Nc3 {[%clk 0:03:02.5]} 3... dxe4 {[%clk 0:03:03.9]} 4.
Nxe4 {[%clk 0:03:04]} 4... Bf5 {[%clk 0:03:05.2]} 5. Ng3 {[%clk 0:03:04.6]} 5...
Bg6 {[%clk 0:03:06.3]} 6. Bc4 {[%clk 0:03:05.9]} 6... e6 {[%clk 0:03:06]} 7.
N1e2 {[%clk 0:03:07.2]} 7... Nd7 {[%clk 0:03:00.5]} 8. O-O {[%clk 0:03:07.4]}
8... Bd6 {[%clk 0:02:58.7]} 9. f4 {[%clk 0:03:07.1]} 9... Ne7 {[%clk 0:02:49.8]}
10. Bd3 {[%clk 0:03:06.7]} 10... Bxd3 {[%clk 0:02:47.6]} 11. Qxd3 {[%clk
0:03:07.7]} 11... g6 {[%clk 0:02:27.8]} 12. b3 {[%clk 0:03:06.8]} 12... Qc7
{[%clk 0:02:28]} 13. c4 {[%clk 0:03:03]} 13... c5 {[%clk 0:02:25.5]} 14. Nc3
{[%clk 0:02:51]} 14... a6 {[%clk 0:02:11.5]} 15. Nge4 {[%clk 0:02:50.4]} 15...
O-O-O {[%clk 0:01:57.3]} 16. Nxd6+ {[%clk 0:02:48.2]} 16... Qxd6 {[%clk
0:01:57.3]} 17. Ne4 {[%clk 0:02:46.7]} 17... Qxd4+ {[%clk 0:01:56.3]} 18. Qxd4
{[%clk 0:02:46.7]} 18... cxd4 {[%clk 0:01:58.2]} 19. Nd6+ {[%clk 0:02:46.2]}
19... Kc7 {[%clk 0:01:51.4]} 20. Nxf7 {[%clk 0:02:47]} 20... Nf5 {[%clk
0:01:48.2]} 21. Nxh8 {[%clk 0:02:46.5]} 21... Rxh8 {[%clk 0:01:48.4]} 22. Bb2
{[%clk 0:02:47.3]} 22... Nc5 {[%clk 0:01:41.7]} 23. g4 {[%clk 0:02:36.8]} 23...
Nd3 {[%clk 0:01:15.4]} 24. gxf5 {[%clk 0:02:33.5]} 24... Nxb2 {[%clk 0:01:16.1]}
25. fxe6 {[%clk 0:02:33.7]} 25... Re8 {[%clk 0:01:09.9]} 26. Rf2 {[%clk
0:02:29.7]} 26... Nd3 {[%clk 0:01:09.4]} 27. Rd2 {[%clk 0:02:30.5]} 27... Nxf4
{[%clk 0:01:09.7]} 28. Rf1 {[%clk 0:02:30.2]} 28... g5 {[%clk 0:01:07.6]} 29.
Rxf4 {[%clk 0:02:23.8]} 29... gxf4 {[%clk 0:01:05.2]} 30. Rxd4 {[%clk
0:02:25.2]} 30... Rxe6 {[%clk 0:01:02.8]} 31. Rxf4 {[%clk 0:02:25.9]} 31... h6
{[%clk 0:00:59.3]} 32. Kf2 {[%clk 0:02:23.7]} 32... Rd6 {[%clk 0:00:59.9]} 33.
Re4 {[%clk 0:02:24.7]} 33... Rd2+ {[%clk 0:00:59.9]} 34. Re2 {[%clk 0:02:25.5]}
34... Rd6 {[%clk 0:01:01.5]} 35. Ke1 {[%clk 0:02:22.2]} 35... Kb6 {[%clk
0:00:59.6]} 36. Rd2 {[%clk 0:02:20.9]} 36... Re6+ {[%clk 0:01:00]} 37. Kd1
{[%clk 0:02:21.8]} 37... Kc5 {[%clk 0:00:56.3]} 38. Kc2 {[%clk 0:02:23.2]} 38...
Rg6 {[%clk 0:00:52.4]} 39. a3 {[%clk 0:02:19.5]} 39... Kc6 {[%clk 0:00:52.7]}
40. Kc3 {[%clk 0:02:17]} 40... Rf6 {[%clk 0:00:53]} 41. Rd3 {[%clk 0:02:16.9]}
41... Rf2 {[%clk 0:00:53.7]} 42. h3 {[%clk 0:02:16.9]} 42... Rf1 {[%clk
0:00:54.8]} 43. b4 {[%clk 0:02:16]} 43... Rc1+ {[%clk 0:00:55.6]} 44. Kb3 {[%clk
0:02:15.2]} 44... Rb1+ {[%clk 0:00:56.3]} 45. Kc2 {[%clk 0:02:12.2]} 45... Rg1
{[%clk 0:00:55.9]} 46. Rf3 {[%clk 0:02:11.1]} 46... Rg2+ {[%clk 0:00:56.5]} 47.
Kb3 {[%clk 0:02:10.9]} 47... Rg6 {[%clk 0:00:57.4]} 48. a4 {[%clk 0:02:10.7]}
48... b6 {[%clk 0:00:51.9]} 49. h4 {[%clk 0:02:06]} 49... Re6 {[%clk 0:00:51.1]}
50. Rg3 {[%clk 0:02:00.8]} 50... h5 {[%clk 0:00:42.8]} 51. b5+ {[%clk
0:01:58.3]} 51... axb5 {[%clk 0:00:43.5]} 52. axb5+ {[%clk 0:01:59.1]} 52... Kc7
{[%clk 0:00:44]} 53. Rg7+ {[%clk 0:01:54.4]} 53... Kd6 {[%clk 0:00:43.4]} 54.
Rg5 {[%clk 0:01:49.5]} 54... Rh6 {[%clk 0:00:43]} 55. Kb4 {[%clk 0:01:50.9]}
55... Kc7 {[%clk 0:00:42.1]} 56. Rg7+ {[%clk 0:01:50.5]} 56... Kd6 {[%clk
0:00:42.9]} 57. Rb7 {[%clk 0:01:47.6]} 57... Ke5 {[%clk 0:00:41.3]} 58. c5
{[%clk 0:01:48.7]} 58... bxc5+ {[%clk 0:00:38.6]} 59. Kxc5 {[%clk 0:01:50]}
59... Kf4 {[%clk 0:00:39.3]} 60. Rg7 {[%clk 0:01:49.3]} 60... Re6 {[%clk
0:00:37.2]} 1-0

[Event "*** Titled Tuesday Blitz"]
[Site "Chess.com"]
[Date "2018.08.07"]
[Round "6"]
[White "norwaytoadog"]
[Black "Egorov_Pavel"]
[Result "0-1"]
[WhiteElo "2132"]
[BlackElo "2316"]
[TimeControl "180+2"]
[EndTime "14:17:17 PDT"]
[Termination "Egorov_Pavel won by checkmate"]

1. e4 {[%clk 0:03:01.8]} 1... e6 {[%clk 0:03:00.6]} 2. d4 {[%clk 0:03:02.2]}
2... d5 {[%clk 0:03:01.4]} 3. e5 {[%clk 0:03:03.6]} 3... c5 {[%clk 0:03:02.5]}
4. c3 {[%clk 0:03:05.1]} 4... Nc6 {[%clk 0:03:04]} 5. Nf3 {[%clk 0:03:06.4]}
5... Qb6 {[%clk 0:03:02.9]} 6. a3 {[%clk 0:03:07.8]} 6... f6 {[%clk 0:03:04.2]}
7. exf6 {[%clk 0:03:04.7]} 7... Nxf6 {[%clk 0:03:06.1]} 8. b4 {[%clk 0:03:05.4]}
8... cxd4 {[%clk 0:03:02.1]} 9. cxd4 {[%clk 0:03:06.5]} 9... Bd6 {[%clk
0:02:51.7]} 10. Bd3 {[%clk 0:03:04.8]} 10... O-O {[%clk 0:02:52.7]} 11. O-O
{[%clk 0:03:05.6]} 11... e5 {[%clk 0:02:50.1]} 12. dxe5 {[%clk 0:02:54.8]} 12...
Nxe5 {[%clk 0:02:52]} 13. Be3 {[%clk 0:02:37.6]} 13... Qc7 {[%clk 0:02:41.4]}
14. h3 {[%clk 0:02:31]} 14... Kh8 {[%clk 0:01:54.8]} 15. Nxe5 {[%clk 0:02:19.5]}
15... Bxe5 {[%clk 0:01:56.7]} 16. Ra2 {[%clk 0:02:20.1]} 16... d4 {[%clk
0:01:39.8]} 17. Bg5 {[%clk 0:02:03.8]} 17... Qf7 {[%clk 0:01:40.6]} 18. Re2
{[%clk 0:01:45.8]} 18... Bc7 {[%clk 0:01:41.9]} 19. Qc2 {[%clk 0:01:40.5]} 19...
Qh5 {[%clk 0:01:39.6]} 20. Bxf6 {[%clk 0:01:26.2]} 20... Rxf6 {[%clk 0:01:41.5]}
21. Qxc7 {[%clk 0:01:24.3]} 21... Bxh3 {[%clk 0:01:34.5]} 22. Qg3 {[%clk
0:00:55.3]} 22... Bg4 {[%clk 0:01:05.5]} 23. Re5 {[%clk 0:00:52.3]} 23... g5
{[%clk 0:00:55.2]} 24. f4 {[%clk 0:00:41.4]} 24... gxf4 {[%clk 0:00:23.4]} 25.
Rxh5 {[%clk 0:00:42.1]} 25... fxg3 {[%clk 0:00:24.8]} 26. Rxf6 {[%clk
0:00:42.6]} 26... Bxh5 {[%clk 0:00:26.3]} 27. Nd2 {[%clk 0:00:36.8]} 27... Re8
{[%clk 0:00:20.4]} 28. Rh6 {[%clk 0:00:35.3]} 28... Re1+ {[%clk 0:00:19.9]} 29.
Nf1 {[%clk 0:00:35.2]} 29... Bd1 {[%clk 0:00:16.9]} 30. Rxh7+ {[%clk 0:00:36.2]}
30... Kg8 {[%clk 0:00:17.9]} 31. Rxb7 {[%clk 0:00:36.5]} 31... Be2 {[%clk
0:00:08.8]} 32. Re7 {[%clk 0:00:33.7]} 32... Rxf1# {[%clk 0:00:10.4]} 0-1

[Event "*** Titled Tuesday Blitz"]
[Site "Chess.com"]
[Date "2018.08.07"]
[Round "6"]
[White "albi1999"]
[Black "chenrip"]
[Result "1-0"]
[WhiteElo "2389"]
[BlackElo "2417"]
[TimeControl "180+2"]
[EndTime "14:17:18 PDT"]
[Termination "albi1999 won by resignation"]

1. d4 {[%clk 0:02:57.9]} 1... d5 {[%clk 0:02:59.7]} 2. c4 {[%clk 0:02:58.1]}
2... e5 {[%clk 0:03:00.9]} 3. dxe5 {[%clk 0:02:59]} 3... d4 {[%clk 0:03:02]} 4.
Nf3 {[%clk 0:03:00.1]} 4... Nc6 {[%clk 0:03:03]} 5. a3 {[%clk 0:02:58.3]} 5...
Nge7 {[%clk 0:03:02.5]} 6. b4 {[%clk 0:02:50.3]} 6... Ng6 {[%clk 0:03:02.8]} 7.
Bb2 {[%clk 0:02:49.2]} 7... Ngxe5 {[%clk 0:02:58.7]} 8. Nxe5 {[%clk 0:02:46.1]}
8... Nxe5 {[%clk 0:02:59.7]} 9. e3 {[%clk 0:02:47.4]} 9... Be6 {[%clk
0:02:46.1]} 10. Bxd4 {[%clk 0:02:48.3]} 10... Nxc4 {[%clk 0:02:45.7]} 11. Qc2
{[%clk 0:02:48.8]} 11... Nd6 {[%clk 0:02:43]} 12. Bd3 {[%clk 0:02:46.8]} 12...
c6 {[%clk 0:02:35.8]} 13. O-O {[%clk 0:02:41.3]} 13... Be7 {[%clk 0:02:32.6]}
14. Nd2 {[%clk 0:02:34.9]} 14... h6 {[%clk 0:02:31.2]} 15. Rad1 {[%clk
0:02:24.6]} 15... O-O {[%clk 0:02:30.9]} 16. Rfe1 {[%clk 0:02:21.6]} 16... Bf6
{[%clk 0:02:27.1]} 17. Bxf6 {[%clk 0:02:21]} 17... Qxf6 {[%clk 0:02:27.6]} 18.
e4 {[%clk 0:02:22.8]} 18... Nb5 {[%clk 0:02:21.2]} 19. e5 {[%clk 0:02:14.9]}
19... Qe7 {[%clk 0:02:16.6]} 20. Bxb5 {[%clk 0:02:14.7]} 20... cxb5 {[%clk
0:02:17.3]} 21. Ne4 {[%clk 0:02:14.8]} 21... Rac8 {[%clk 0:02:16.6]} 22. Qe2
{[%clk 0:02:11.1]} 22... Bc4 {[%clk 0:02:15.9]} 23. Qh5 {[%clk 0:02:06]} 23...
Rfe8 {[%clk 0:02:04.7]} 24. Nd6 {[%clk 0:02:05.1]} 24... Rcd8 {[%clk 0:02:00.5]}
25. Nxe8 {[%clk 0:02:04.2]} 25... Rxe8 {[%clk 0:01:57.5]} 26. Qf5 {[%clk
0:02:00.9]} 26... Be6 {[%clk 0:01:57.8]} 27. Qd3 {[%clk 0:02:00.2]} 27... Rc8
{[%clk 0:01:55.8]} 28. Qxb5 {[%clk 0:01:59.7]} 28... a6 {[%clk 0:01:47.9]} 29.
Qb6 {[%clk 0:01:57.8]} 29... Kh7 {[%clk 0:01:39.7]} 30. Qd6 {[%clk 0:01:50.2]}
30... Qg5 {[%clk 0:01:39.3]} 31. Qd2 {[%clk 0:01:48.4]} 31... Qe7 {[%clk
0:01:37.3]} 32. Qd3+ {[%clk 0:01:47.4]} 32... g6 {[%clk 0:01:37.7]} 33. h3
{[%clk 0:01:48.5]} 33... Qg5 {[%clk 0:01:35.5]} 34. Qe3 {[%clk 0:01:49.3]} 34...
Qe7 {[%clk 0:01:29.4]} 35. Rc1 {[%clk 0:01:49.8]} 35... Rxc1 {[%clk 0:01:20.9]}
36. Rxc1 {[%clk 0:01:51.7]} 36... Bd5 {[%clk 0:01:21.9]} 37. Rd1 {[%clk
0:01:49.6]} 37... Qe6 {[%clk 0:01:20.8]} 38. Qf4 {[%clk 0:01:47.8]} 38... Bc6
{[%clk 0:01:19.7]} 39. Rd6 {[%clk 0:01:41.1]} 39... Qb3 {[%clk 0:00:58.5]} 40.
e6 {[%clk 0:01:36.3]} 40... f5 {[%clk 0:00:41.3]} 41. e7 {[%clk 0:01:24.1]}
41... Qb1+ {[%clk 0:00:41.9]} 42. Kh2 {[%clk 0:01:23.7]} 42... Qe1 {[%clk
0:00:43.4]} 43. Qe3 {[%clk 0:01:12.8]} 43... Qf1 {[%clk 0:00:40.7]} 44. f3
{[%clk 0:01:13.5]} 44... Qb5 {[%clk 0:00:36.6]} 45. e8=Q {[%clk 0:01:07.9]}
45... Bxe8 {[%clk 0:00:36.3]} 46. Qe7+ {[%clk 0:01:09.3]} 46... Kg8 {[%clk
0:00:35.8]} 47. Rf6 {[%clk 0:01:10.5]} 1-0

[Event "*** Titled Tuesday Blitz"]
[Site "Chess.com"]
[Date "2018.08.07"]
[Round "6"]
[White "MFBerna"]
[Black "krzysztofszczurek"]
[Result "1-0"]
[WhiteElo "2292"]
[BlackElo "2368"]
[TimeControl "180+2"]
[EndTime "14:17:24 PDT"]
[Termination "MFBerna won by checkmate"]

1. e4 {[%clk 0:03:00.9]} 1... c5 {[%clk 0:03:00.2]} 2. Nf3 {[%clk 0:03:00.2]}
2... d6 {[%clk 0:03:00.6]} 3. d4 {[%clk 0:03:02.1]} 3... cxd4 {[%clk 0:03:01]}
4. Nxd4 {[%clk 0:03:04]} 4... Nf6 {[%clk 0:03:02.4]} 5. Nc3 {[%clk 0:03:05.3]}
5... a6 {[%clk 0:03:03.4]} 6. Be2 {[%clk 0:03:06.7]} 6... e5 {[%clk 0:03:00.5]}
7. Nb3 {[%clk 0:03:07.6]} 7... Be7 {[%clk 0:03:01.8]} 8. O-O {[%clk 0:03:08.9]}
8... O-O {[%clk 0:02:56.8]} 9. Be3 {[%clk 0:03:10.1]} 9... Be6 {[%clk
0:02:55.6]} 10. f4 {[%clk 0:03:11.2]} 10... exf4 {[%clk 0:02:56.3]} 11. Rxf4
{[%clk 0:03:11.7]} 11... Nbd7 {[%clk 0:02:56.3]} 12. Nd4 {[%clk 0:03:12.7]}
12... Rc8 {[%clk 0:02:54.6]} 13. Qd2 {[%clk 0:03:11.9]} 13... Ne5 {[%clk
0:02:53.9]} 14. Kh1 {[%clk 0:03:04.2]} 14... Qd7 {[%clk 0:02:48.6]} 15. a4
{[%clk 0:03:03]} 15... Nc4 {[%clk 0:02:38.7]} 16. Bxc4 {[%clk 0:03:02.9]} 16...
Rxc4 {[%clk 0:02:39.6]} 17. Raf1 {[%clk 0:03:02.3]} 17... Rfc8 {[%clk
0:02:37.1]} 18. Nf5 {[%clk 0:02:59.6]} 18... Bxf5 {[%clk 0:02:34.2]} 19. Rxf5
{[%clk 0:03:01.5]} 19... Qe6 {[%clk 0:02:29.6]} 20. Qd3 {[%clk 0:02:42.6]} 20...
R8c6 {[%clk 0:02:03.6]} 21. Bd4 {[%clk 0:02:05.5]} 21... Rc8 {[%clk 0:01:47.8]}
22. Bxf6 {[%clk 0:01:56.5]} 22... Bxf6 {[%clk 0:01:46.9]} 23. Nd5 {[%clk
0:01:44.7]} 23... Bxb2 {[%clk 0:01:30]} 24. Rxf7 {[%clk 0:01:24]} 24... Qxf7
{[%clk 0:01:30.5]} 25. Rxf7 {[%clk 0:01:25.2]} 25... Kxf7 {[%clk 0:01:31.5]} 26.
Qb3 {[%clk 0:01:13.7]} 26... Kf8 {[%clk 0:00:52.8]} 27. h4 {[%clk 0:00:29.7]}
27... Rxc2 {[%clk 0:00:47.5]} 28. Qf3+ {[%clk 0:00:17.8]} 28... Ke8 {[%clk
0:00:37.7]} 29. Qh5+ {[%clk 0:00:18.2]} 29... Kd8 {[%clk 0:00:19.2]} 30. Qxh7
{[%clk 0:00:13.9]} 30... Rc1+ {[%clk 0:00:17.1]} 31. Kh2 {[%clk 0:00:14.6]}
31... Be5+ {[%clk 0:00:17.7]} 32. Kh3 {[%clk 0:00:15.9]} 32... R8c2 {[%clk
0:00:16.5]} 33. Qg8+ {[%clk 0:00:13.3]} 33... Kd7 {[%clk 0:00:17.4]} 34. Qf7+
{[%clk 0:00:13.9]} 34... Kc8 {[%clk 0:00:17.2]} 35. Qe8# {[%clk 0:00:14.2]} 1-0

[Event "*** Titled Tuesday Blitz"]
[Site "Chess.com"]
[Date "2018.08.07"]
[Round "6"]
[White "nitpicker"]
[Black "Mbneu"]
[Result "1-0"]
[WhiteElo "2109"]
[BlackElo "2275"]
[TimeControl "180+2"]
[EndTime "14:17:24 PDT"]
[Termination "nitpicker won by resignation"]

1. d4 {[%clk 0:03:01.9]} 1... Nf6 {[%clk 0:02:57.6]} 2. c4 {[%clk 0:03:02.7]}
2... c5 {[%clk 0:02:58.3]} 3. d5 {[%clk 0:03:03.2]} 3... e6 {[%clk 0:02:58.6]}
4. Nc3 {[%clk 0:03:03.2]} 4... exd5 {[%clk 0:02:59]} 5. cxd5 {[%clk 0:03:04.8]}
5... d6 {[%clk 0:03:00]} 6. e4 {[%clk 0:03:05.5]} 6... g6 {[%clk 0:03:01.3]} 7.
h3 {[%clk 0:03:06.2]} 7... Bg7 {[%clk 0:03:01.2]} 8. Nf3 {[%clk 0:03:07.7]} 8...
O-O {[%clk 0:03:01.8]} 9. Bd3 {[%clk 0:03:08.1]} 9... b5 {[%clk 0:03:03.1]} 10.
Nxb5 {[%clk 0:03:08.9]} 10... Re8 {[%clk 0:02:55.1]} 11. Nc3 {[%clk 0:02:49.3]}
11... Nxe4 {[%clk 0:02:41.5]} 12. Nxe4 {[%clk 0:02:45.7]} 12... f5 {[%clk
0:02:40.5]} 13. Ng5 {[%clk 0:02:36.9]} 13... fxe4 {[%clk 0:02:40.9]} 14. Bxe4
{[%clk 0:02:28.2]} 14... Bf5 {[%clk 0:02:35.4]} 15. Ne6 {[%clk 0:02:25.2]} 15...
Bxe4 {[%clk 0:02:24.3]} 16. Nxd8 {[%clk 0:02:05.9]} 16... Bf3+ {[%clk
0:02:15.8]} 17. Ne6 {[%clk 0:02:05.3]} 17... Bxd1 {[%clk 0:02:15.7]} 18. Kxd1
{[%clk 0:02:06.7]} 18... Bf6 {[%clk 0:02:12]} 19. Nc7 {[%clk 0:02:05.1]} 19...
Nd7 {[%clk 0:02:10.5]} 20. Nxa8 {[%clk 0:02:03.5]} 20... Rxa8 {[%clk 0:02:10.1]}
21. Kc2 {[%clk 0:01:53.2]} 21... Nb6 {[%clk 0:02:08.4]} 22. Rd1 {[%clk
0:01:51.9]} 22... Nc4 {[%clk 0:02:07.4]} 23. Rb1 {[%clk 0:01:50]} 23... Re8
{[%clk 0:02:07]} 24. b3 {[%clk 0:01:31.7]} 24... Nb6 {[%clk 0:01:58]} 25. Be3
{[%clk 0:01:31.1]} 25... Re5 {[%clk 0:01:55.6]} 26. Rd2 {[%clk 0:01:28.9]} 26...
Nxd5 {[%clk 0:01:54.4]} 27. Rbd1 {[%clk 0:01:27.6]} 27... Nb4+ {[%clk
0:01:49.1]} 28. Kb1 {[%clk 0:01:28.6]} 28... d5 {[%clk 0:01:34.1]} 29. a3 {[%clk
0:01:28.5]} 29... d4 {[%clk 0:01:34]} 30. Bf4 {[%clk 0:01:18]} 30... Rf5 {[%clk
0:01:28.5]} 31. axb4 {[%clk 0:01:18.9]} 31... Rxf4 {[%clk 0:01:28.9]} 32. bxc5
{[%clk 0:01:20.4]} 32... Kf7 {[%clk 0:01:21.1]} 33. c6 {[%clk 0:01:17.9]} 33...
Ke8 {[%clk 0:01:20.5]} 34. Ra2 {[%clk 0:01:05.9]} 34... Kd8 {[%clk 0:01:06.6]}
35. Rxa7 {[%clk 0:01:06.4]} 35... Rxf2 {[%clk 0:01:06.9]} 36. b4 {[%clk
0:01:06]} 36... Kc8 {[%clk 0:01:01]} 37. Ra2 {[%clk 0:00:58.2]} 37... Rf5 {[%clk
0:00:58.5]} 38. Ra7 {[%clk 0:00:47.1]} 38... Rb5 {[%clk 0:00:56.9]} 39. Rb7
{[%clk 0:00:45.7]} 39... Rxb7 {[%clk 0:00:39.9]} 40. cxb7+ {[%clk 0:00:45.9]}
40... Kxb7 {[%clk 0:00:41.8]} 41. Kc2 {[%clk 0:00:46.9]} 41... Kc6 {[%clk
0:00:42.5]} 42. Kb3 {[%clk 0:00:47.3]} 42... Kb5 {[%clk 0:00:43.4]} 43. Rf1
{[%clk 0:00:44.7]} 43... Be5 {[%clk 0:00:44.1]} 44. Ra1 {[%clk 0:00:42.5]} 44...
Bc7 {[%clk 0:00:42.1]} 45. Ra7 {[%clk 0:00:40.6]} 45... Bb6 {[%clk 0:00:38]} 46.
Rxh7 {[%clk 0:00:39.8]} 46... d3 {[%clk 0:00:39.2]} 47. Rd7 {[%clk 0:00:39.1]}
1-0

[Event "*** Titled Tuesday Blitz"]
[Site "Chess.com"]
[Date "2018.08.07"]
[Round "6"]
[White "Marcan2b"]
[Black "RitvarsReimanis"]
[Result "0-1"]
[WhiteElo "2311"]
[BlackElo "2443"]
[TimeControl "180+2"]
[EndTime "14:17:28 PDT"]
[Termination "RitvarsReimanis won by resignation"]

1. e4 {[%clk 0:03:01.5]} 1... c5 {[%clk 0:03:00.1]} 2. Nf3 {[%clk 0:02:59.5]}
2... Nc6 {[%clk 0:03:00.9]} 3. d4 {[%clk 0:02:59.3]} 3... cxd4 {[%clk
0:03:00.2]} 4. Nxd4 {[%clk 0:03:01.1]} 4... Nf6 {[%clk 0:03:00]} 5. Nc3 {[%clk
0:03:01]} 5... d6 {[%clk 0:02:59.8]} 6. Be2 {[%clk 0:02:59]} 6... e5 {[%clk
0:03:00.1]} 7. Nb3 {[%clk 0:02:58.1]} 7... a5 {[%clk 0:03:00.6]} 8. a4 {[%clk
0:02:50.7]} 8... Be6 {[%clk 0:03:00.8]} 9. O-O {[%clk 0:02:51.2]} 9... Be7
{[%clk 0:03:01.5]} 10. Bg5 {[%clk 0:02:16.7]} 10... O-O {[%clk 0:02:24.3]} 11.
Bxf6 {[%clk 0:02:15.5]} 11... gxf6 {[%clk 0:02:25.4]} 12. Bg4 {[%clk 0:02:14.1]}
12... Qd7 {[%clk 0:02:21.1]} 13. Bxe6 {[%clk 0:01:58.4]} 13... fxe6 {[%clk
0:02:20]} 14. Nc5 {[%clk 0:01:33.5]} 14... Qc8 {[%clk 0:02:19.9]} 15. Qg4+
{[%clk 0:01:33.6]} 15... Kh8 {[%clk 0:02:13.8]} 16. Nxe6 {[%clk 0:01:17.6]}
16... Rg8 {[%clk 0:02:09.5]} 17. Qf5 {[%clk 0:01:16.5]} 17... Nb4 {[%clk
0:01:51.3]} 18. Nd5 {[%clk 0:01:04.4]} 18... Nxd5 {[%clk 0:01:33.8]} 19. exd5
{[%clk 0:01:06.3]} 19... Qc4 {[%clk 0:01:29.1]} 20. Rfd1 {[%clk 0:00:52.3]}
20... Rg6 {[%clk 0:01:30]} 21. Ra3 {[%clk 0:00:13.1]} 21... Qe2 {[%clk
0:01:20.9]} 22. Rf1 {[%clk 0:00:12.6]} 22... Rag8 {[%clk 0:01:20.9]} 23. Rg3
{[%clk 0:00:12.8]} 23... Qc4 {[%clk 0:01:19.9]} 24. Rxg6 {[%clk 0:00:11]} 24...
Rxg6 {[%clk 0:01:21.8]} 25. Qf3 {[%clk 0:00:08.6]} 25... Qxc2 {[%clk 0:01:16.7]}
26. Qe3 {[%clk 0:00:07.5]} 26... Qc4 {[%clk 0:01:09.4]} 27. Rc1 {[%clk
0:00:07.7]} 27... Qxd5 {[%clk 0:01:10.5]} 28. Rc8+ {[%clk 0:00:08.5]} 28... Rg8
{[%clk 0:01:12.1]} 29. Rxg8+ {[%clk 0:00:08.5]} 29... Kxg8 {[%clk 0:01:14]} 30.
Qg3+ {[%clk 0:00:09.1]} 30... Kf7 {[%clk 0:01:15.4]} 31. Qg7+ {[%clk 0:00:05.5]}
31... Ke8 {[%clk 0:01:16.7]} 32. Qg8+ {[%clk 0:00:06.2]} 32... Kd7 {[%clk
0:01:17.1]} 33. Nf8+ {[%clk 0:00:07.3]} 33... Kc6 {[%clk 0:01:18.1]} 34. Qxd5+
{[%clk 0:00:08.3]} 34... Kxd5 {[%clk 0:01:20]} 35. Nxh7 {[%clk 0:00:10.2]} 35...
f5 {[%clk 0:01:20.5]} 36. g3 {[%clk 0:00:10.5]} 36... Ke6 {[%clk 0:01:15.5]} 37.
h4 {[%clk 0:00:11.2]} 37... e4 {[%clk 0:01:13.1]} 38. Ng5+ {[%clk 0:00:11.9]}
38... Bxg5 {[%clk 0:01:13.2]} 39. hxg5 {[%clk 0:00:13.8]} 39... Kf7 {[%clk
0:01:13]} 40. f4 {[%clk 0:00:10.9]} 40... exf3 {[%clk 0:01:12]} 41. Kf2 {[%clk
0:00:12.1]} 41... Kg6 {[%clk 0:01:13.3]} 42. Kxf3 {[%clk 0:00:13.6]} 42... Kxg5
{[%clk 0:01:14.8]} 43. Ke3 {[%clk 0:00:14.4]} 43... Kg4 {[%clk 0:01:16]} 44. Kf2
{[%clk 0:00:15.3]} 44... d5 {[%clk 0:01:15.7]} 45. Kg2 {[%clk 0:00:15.6]} 45...
d4 {[%clk 0:01:16]} 46. Kf2 {[%clk 0:00:16.9]} 46... d3 {[%clk 0:01:17.5]} 47.
Ke3 {[%clk 0:00:16.1]} 47... Kxg3 {[%clk 0:01:18.1]} 0-1

[Event "*** Titled Tuesday Blitz"]
[Site "Chess.com"]
[Date "2018.08.07"]
[Round "6"]
[White "nOcHeaTiNgKiD"]
[Black "NateSolon"]
[Result "0-1"]
[WhiteElo "2385"]
[BlackElo "2518"]
[TimeControl "180+2"]
[EndTime "14:17:29 PDT"]
[Termination "NateSolon won by resignation"]

1. Nf3 {[%clk 0:03:01.9]} 1... d5 {[%clk 0:02:59.5]} 2. d4 {[%clk 0:02:58.8]}
2... Nf6 {[%clk 0:03:00.2]} 3. Bf4 {[%clk 0:02:58.1]} 3... e6 {[%clk 0:03:00.5]}
4. e3 {[%clk 0:02:59.2]} 4... Bd6 {[%clk 0:03:01.2]} 5. Bg3 {[%clk 0:02:59.9]}
5... O-O {[%clk 0:03:02.2]} 6. Nbd2 {[%clk 0:03:00.8]} 6... c5 {[%clk
0:03:03.2]} 7. c3 {[%clk 0:03:02]} 7... Qc7 {[%clk 0:03:04.1]} 8. Bd3 {[%clk
0:02:54.8]} 8... Nbd7 {[%clk 0:03:04.4]} 9. e4 {[%clk 0:02:49]} 9... dxe4 {[%clk
0:03:00.3]} 10. Nxe4 {[%clk 0:02:49.2]} 10... Nxe4 {[%clk 0:02:59.8]} 11. Bxe4
{[%clk 0:02:50]} 11... Nf6 {[%clk 0:02:58.9]} 12. Bc2 {[%clk 0:02:43.7]} 12...
Rd8 {[%clk 0:02:47.1]} 13. Qe2 {[%clk 0:02:34.5]} 13... b6 {[%clk 0:02:19.5]}
14. O-O {[%clk 0:02:24]} 14... Bxg3 {[%clk 0:02:17.9]} 15. hxg3 {[%clk
0:02:21.7]} 15... Bb7 {[%clk 0:02:18.7]} 16. Rad1 {[%clk 0:02:17.9]} 16... Rac8
{[%clk 0:02:08.2]} 17. Rfe1 {[%clk 0:02:16.4]} 17... h6 {[%clk 0:02:05.2]} 18.
dxc5 {[%clk 0:02:03.1]} 18... Qxc5 {[%clk 0:02:04.2]} 19. Qe5 {[%clk 0:01:23.1]}
19... Qxe5 {[%clk 0:01:57.9]} 20. Nxe5 {[%clk 0:01:22.2]} 20... Bd5 {[%clk
0:01:55]} 21. c4 {[%clk 0:01:12.6]} 21... Bb7 {[%clk 0:01:50.5]} 22. b4 {[%clk
0:01:05.8]} 22... Ne8 {[%clk 0:01:40.8]} 23. Rxd8 {[%clk 0:00:56.1]} 23... Rxd8
{[%clk 0:01:41.8]} 24. Rd1 {[%clk 0:00:56.9]} 24... Rxd1+ {[%clk 0:01:36.3]} 25.
Bxd1 {[%clk 0:00:58.8]} 25... f6 {[%clk 0:01:32.2]} 26. Nf3 {[%clk 0:00:43.3]}
26... Nd6 {[%clk 0:01:29.9]} 27. Bb3 {[%clk 0:00:41.5]} 27... Kf8 {[%clk
0:01:20.6]} 28. c5 {[%clk 0:00:33]} 28... bxc5 {[%clk 0:01:21.7]} 29. bxc5
{[%clk 0:00:34.9]} 29... Ne4 {[%clk 0:01:22.5]} 30. Nd4 {[%clk 0:00:32.5]} 30...
Nxc5 {[%clk 0:01:23]} 31. Nxe6+ {[%clk 0:00:33.7]} 31... Nxe6 {[%clk 0:01:23.9]}
32. Bxe6 {[%clk 0:00:35.6]} 32... Ke7 {[%clk 0:01:25]} 33. Bb3 {[%clk
0:00:36.5]} 33... Kd6 {[%clk 0:01:25.4]} 34. f3 {[%clk 0:00:35.8]} 34... Kc5
{[%clk 0:01:25.8]} 35. Kf2 {[%clk 0:00:34.7]} 35... Kd4 {[%clk 0:01:26.8]} 36.
Ke2 {[%clk 0:00:29.2]} 36... Ba6+ {[%clk 0:01:27.6]} 37. Kf2 {[%clk 0:00:28.1]}
37... Bd3 {[%clk 0:01:28.3]} 38. g4 {[%clk 0:00:24.2]} 38... g5 {[%clk
0:01:26.6]} 39. g3 {[%clk 0:00:24.9]} 39... a5 {[%clk 0:01:26.9]} 40. f4 {[%clk
0:00:24.7]} 40... Bb5 {[%clk 0:01:26.5]} 41. Bf7 {[%clk 0:00:14.3]} 41... Bd7
{[%clk 0:01:22.8]} 42. f5 {[%clk 0:00:14.1]} 42... a4 {[%clk 0:01:22.2]} 43. Be6
{[%clk 0:00:14.5]} 43... Bc6 {[%clk 0:01:22.2]} 44. Bf7 {[%clk 0:00:12.1]} 44...
a3 {[%clk 0:01:22.6]} 45. Be6 {[%clk 0:00:10.3]} 45... Be4 {[%clk 0:01:18.7]}
46. Ke2 {[%clk 0:00:09.5]} 46... Kc3 {[%clk 0:01:17.2]} 47. Kd1 {[%clk
0:00:06.1]} 47... Bf3+ {[%clk 0:01:16.1]} 48. Kc1 {[%clk 0:00:04.9]} 48... Bxg4
{[%clk 0:01:18]} 49. Bc8 {[%clk 0:00:05.2]} 49... Bf3 {[%clk 0:01:18.4]} 50. Be6
{[%clk 0:00:06.1]} 50... h5 {[%clk 0:01:19.3]} 0-1